bitfinex/quotes_ETHUSD_20260203
["timestamp","ask_amount","ask_price","bid_price","bid_amount"]
[1770148324276,0.00684759,2202.7,2201.8,0.91552608]
[1770148324479,0.00684759,2202.7,2201.9,0.91552608]
[1770148324677,0.00684759,2202.7,2202.0,0.91552608]
[1770148324877,0.00684759,2202.2,2202.1,0.91552608]
[1770148325113,0.00684759,2202.2,2201.7,2.47087743]
[1770148325114,0.00684759,2201.7,2201.5,1.513877]
[1770148325287,0.00684759,2201.3,2201.2,1.513877]
[1770148325497,0.00684759,2201.7,2201.0,3.8626475]
[1770148325498,0.00684759,2202.5,2201.1,14.47957774]
[1770148325798,0.00684759,2201.4,2201.2,0.53765245]
[1770148326034,0.00684759,2201.5,2201.2,0.53765245]
[1770148326183,0.00684759,2201.7,2201.2,0.53765245]
[1770148326543,0.00684759,2202.4,2201.3,1.35033532]
[1770148326680,0.00684759,2202.4,2201.6,14.47957774]
[1770148327010,0.00684759,2202.3,2201.6,14.47957774]
[1770148327310,0.00684759,2202.1,2201.7,1.513877]
[1770148327496,0.00684759,2202.1,2201.6,14.47957774]
[1770148327697,0.00684759,2201.7,2201.2,2.05152945]
[1770148327907,0.00684759,2201.6,2201.3,1.50172302]
[1770148328113,0.00684759,2202.0,2201.3,1.50172302]
[1770148328314,0.00684759,2201.9,2201.3,15.98130076]
[1770148328509,0.00684759,2201.5,2201.3,1.50172302]
[1770148328696,0.00684759,2201.5,2201.2,0.53765245]
[1770148329015,0.00684759,2201.4,2200.9,1.513877]
[1770148329216,0.00684759,2201.5,2201.0,1.513877]
[1770148329384,0.00684759,2202.4,2201.2,1.513877]
[1770148329585,0.00684759,2202.4,2201.1,13.91770074]
[1770148329586,0.00684759,2202.3,2201.3,14.47957774]
[1770148329785,0.00684759,2202.1,2201.5,14.47957774]
[1770148329987,0.00684759,2202.1,2201.6,1.44795777]
[1770148330209,0.00684759,2202.2,2201.6,1.44795777]
[1770148330418,0.00684759,2202.1,2201.6,1.44795777]
[1770148331027,0.00684759,2202.4,2201.6,14.41365851]
[1770148331411,0.00684759,2202.2,2201.6,14.41365851]
[1770148331611,0.00684759,2202.2,2201.7,1.68795355]
[1770148331811,0.00684759,2202.5,2201.7,14.65365429]
[1770148332020,0.00684759,2202.4,2201.7,14.65365429]
[1770148332317,0.00684759,2203.1,2201.9,15.61496081]
[1770148332639,0.00684759,2202.7,2202.1,12.96570074]
[1770148332806,0.00684759,2203.1,2202.0,2.465877]
[1770148332807,0.00684759,2203.1,2202.2,14.50885851]
[1770148333017,0.00684759,2202.8,2202.2,14.50885851]
[1770148333325,0.00684759,2202.6,2202.2,14.50885851]
[1770148333495,0.00684759,2202.5,2202.2,1.54315777]
[1770148333703,0.00684759,2202.6,2202.0,15.43157774]
[1770148334207,0.0011,2202.4,2202.0,15.43157774]
[1770148334538,0.85884759,2203.6,2202.2,12.96570074]
[1770148334836,0.00684759,2202.8,2202.2,12.96570074]
[1770148335341,0.00684759,2202.9,2202.2,12.96570074]
[1770148335549,0.00794759,2203.3,2202.3,15.36565851]
[1770148335709,0.00684759,2203.0,2202.3,15.36565851]
[1770148336343,0.00684759,2202.9,2202.3,15.36565851]
[1770148337144,0.00684759,2202.9,2202.4,0.91524908]
[1770148337321,0.0011,2203.3,2202.5,13.88094982]
[1770148337524,0.00684759,2203.1,2202.6,2.23210198]
[1770148337723,0.00684759,2203.0,2202.7,0.91524908]
[1770148337933,0.00684759,2203.0,2202.6,1.3168529]
[1770148337934,0.00684759,2203.0,2202.8,0.91524908]
[1770148338140,0.00684759,2202.5,2201.9,1.513877]
[1770148338316,0.00684759,2202.4,2201.9,0.37428141]
[1770148338520,0.00684759,2202.2,2201.9,0.37428141]
[1770148338719,0.00684759,2202.0,2201.7,0.001]
[1770148339023,0.00684759,2202.1,2201.7,0.001]
[1770148339233,0.00684759,2202.4,2201.7,0.001]
[1770148339539,0.00684759,2202.9,2201.7,0.001]
[1770148339738,0.00684759,2202.9,2201.7,12.96670074]
[1770148339934,0.00684759,2202.9,2201.8,1.29667007]
[1770148339935,0.00684759,2202.5,2201.8,1.29667007]
[1770148340115,0.00684759,2202.9,2201.8,1.29667007]
[1770148341148,0.00684759,2202.9,2201.8,13.29271897]
[1770148341316,0.00684759,2202.9,2201.8,1.29667007]
[1770148341317,0.00684759,2202.2,2201.8,1.29667007]
[1770148341516,0.00684759,2202.2,2201.7,0.001]
[1770148341717,0.00684759,2201.8,2201.1,1.513877]
[1770148342017,0.00684759,2201.8,2201.0,14.22398602]
[1770148342018,0.00684759,2201.8,2201.0,11.9960489]
[1770148342327,0.00684759,2202.0,2200.9,1.14720862]
[1770148342637,0.00684759,2201.4,2200.9,1.14720862]
[1770148342822,0.00684759,2201.1,2200.6,0.001]
[1770148343018,0.00684759,2201.2,2200.6,0.001]
[1770148343315,0.00684759,2201.2,2200.4,0.001]
[1770148343316,0.00684759,2200.9,2200.4,0.001]
[1770148343723,0.00684759,2200.7,2200.1,0.001]
[1770148344117,0.00684759,2200.4,2199.8,1.14720862]
[1770148344317,0.00684759,2200.1,2199.5,12.06164618]
[1770148344530,0.00684759,2200.1,2199.3,1.14820862]
[1770148344531,0.00684759,2200.0,2199.3,0.001]
[1770148345248,0.00684759,2199.6,2199.3,0.001]
[1770148345651,0.00684759,2199.8,2199.3,0.001]
[1770148345855,0.00684759,2199.7,2199.3,0.001]
[1770148346196,0.00684759,2199.6,2199.3,0.001]
[1770148346371,0.00684759,2199.8,2199.3,0.001]
[1770148346691,0.00684759,2199.7,2199.3,0.001]
[1770148347054,0.00684759,2199.7,2198.4,13.0]
[1770148347055,0.00684759,2199.4,2198.4,13.0]
[1770148347270,0.00684759,2199.3,2198.6,0.001]
[1770148347496,0.00684759,2199.2,2198.6,0.001]
[1770148347793,0.00684759,2199.0,2198.5,1.3001]
[1770148347988,0.00684759,2199.0,2198.5,0.001]
[1770148348164,0.00684759,2198.9,2198.5,0.001]
[1770148348358,0.00684759,2199.1,2198.5,0.001]
[1770148348989,0.00684759,2199.1,2198.4,0.001]
[1770148348990,0.00684759,2198.8,2198.4,0.001]
[1770148349187,0.00684759,2198.9,2198.4,0.001]
[1770148349357,0.00684759,2198.8,2198.4,0.001]
[1770148349784,0.00684759,2199.1,2198.4,0.002]
[1770148350181,0.00684759,2199.0,2198.4,0.002]
[1770148350385,0.00684759,2199.1,2198.4,0.002]
[1770148350590,0.00684759,2198.7,2198.4,0.001]
[1770148351095,0.00684759,2198.8,2198.4,0.001]
[1770148351296,0.00684759,2198.7,2198.4,0.001]
[1770148351478,0.00684759,2198.5,2198.0,0.001]
[1770148351687,0.00684759,2198.8,2198.0,0.004]
[1770148351877,0.00684759,2198.9,2198.0,0.004]
[1770148351878,0.00684759,2198.9,2198.0,13.004]
[1770148352088,0.00684759,2198.9,2198.1,14.3004]
[1770148352317,0.00684759,2199.5,2198.1,15.43770145]
[1770148352498,0.00684759,2199.1,2198.3,13.0]
[1770148352699,0.00684759,2199.3,2198.4,13.003]
[1770148352888,0.00684759,2199.2,2198.4,13.0]
[1770148353210,0.00684759,2199.4,2198.5,14.303]
[1770148353375,0.00684759,2199.3,2198.5,14.3]
[1770148353576,0.00684759,2199.3,2198.6,0.003]
[1770148354273,0.00684759,2199.8,2198.8,12.9965762]
[1770148354470,0.00684759,2199.7,2198.8,12.9965762]
[1770148354699,0.00684759,2199.7,2198.9,1.30265762]
[1770148354700,0.00684759,2199.4,2198.9,1.30265762]
[1770148354909,0.00684759,2199.3,2198.5,1.3]
[1770148355091,0.00684759,2199.5,2198.6,12.9995762]
[1770148355296,0.00684759,2199.7,2198.6,12.9995762]
[1770148355497,0.00684759,2200.0,2198.6,14.13663524]
[1770148355676,0.00684759,2200.0,2198.9,12.9965762]
[1770148355872,0.00684759,2199.8,2199.0,14.30947382]
[1770148356704,0.00684759,2200.0,2199.0,14.30947382]
[1770148357181,0.00684759,2199.8,2199.0,14.30947382]
[1770148357693,0.00684759,2199.8,2199.1,0.003]
[1770148358407,0.00684759,2200.1,2199.3,12.9965762]
[1770148358621,0.00684759,2200.5,2199.4,14.29653382]
[1770148358781,0.00684759,2200.5,2199.5,12.9995762]
[1770148358976,0.00684759,2200.1,2199.5,12.9965762]
[1770148359221,0.00684759,2200.1,2199.6,0.003]
[1770148359512,0.00684759,2200.2,2199.6,0.003]
[1770148360089,0.00684759,2199.7,2199.1,12.9965762]
[1770148360293,0.00684759,2199.5,2199.2,1.43064738]
[1770148360487,0.00684759,2199.7,2199.2,1.43164738]
[1770148360912,0.0011,2199.6,2199.2,1.43164738]
[1770148361114,0.00684759,2199.8,2199.2,1.43164738]
[1770148361316,0.00684759,2200.5,2199.3,12.9995762]
[1770148361504,0.00794759,2199.8,2199.3,14.44269856]
[1770148361706,0.00684759,2200.5,2199.3,12.9995762]
[1770148361905,0.00684759,2200.1,2199.3,12.9995762]
[1770148362087,0.00684759,2199.9,2199.3,12.9995762]
[1770148362280,0.00684759,2200.1,2199.3,12.9995762]
[1770148362602,0.00684759,2200.0,2199.4,1.30005762]
[1770148362994,0.00684759,2200.0,2199.5,0.003]
[1770148363397,0.00684759,2199.6,2199.2,0.001]
[1770148363583,0.00684759,2199.7,2199.2,0.004]
[1770148363790,0.00684759,2199.7,2199.2,0.001]
[1770148364102,0.00684759,2199.9,2199.2,13.0005762]
[1770148364304,0.00684759,2200.1,2199.2,13.0005762]
[1770148364305,0.00684759,2200.1,2199.4,12.9965762]
[1770148364816,0.00684759,2200.1,2199.5,0.003]
[1770148365918,0.00684759,2200.5,2199.5,0.003]
[1770148366421,0.00684759,2200.1,2199.5,0.003]
[1770148366920,0.00684759,2200.1,2199.4,12.9965762]
[1770148366921,0.00684759,2199.9,2199.4,12.9965762]
[1770148367121,0.00684759,2200.0,2199.4,12.9965762]
[1770148367122,0.00684759,2200.5,2199.5,12.9995762]
[1770148367419,0.00684759,2200.2,2199.5,12.9995762]
[1770148367921,0.00684759,2200.1,2199.5,12.9995762]
[1770148368336,0.00684759,2200.5,2199.5,12.9995762]
[1770148368489,0.00684759,2200.5,2199.5,13.9525762]
[1770148368693,0.00794759,2200.7,2199.7,14.13307049]
[1770148368904,0.00794759,2200.7,2199.9,12.9965762]
[1770148369417,0.00684759,2200.6,2199.9,12.9965762]
[1770148370210,0.00684759,2200.6,2200.0,0.003]
[1770148370494,0.00684759,2200.6,2200.0,0.91771354]
[1770148370694,0.00684759,2200.5,2200.0,0.003]
[1770148370901,0.00684759,2200.2,2199.6,1.65190107]
[1770148371150,0.00684759,2200.2,2199.7,2.02303778]
[1770148371306,0.00684759,2200.1,2199.8,0.91504657]
[1770148371697,0.00684759,2200.2,2199.9,0.91504657]
[1770148371901,0.00684759,2200.3,2199.6,14.13234146]
[1770148372107,0.00684759,2200.3,2199.7,0.91804048]
[1770148372300,0.00684759,2200.3,2199.8,0.91804048]
[1770148372631,0.00684759,2200.3,2199.9,0.91804048]
[1770148372846,0.00684759,2200.4,2200.0,0.91804048]
[1770148373039,0.00684759,2200.3,2199.8,0.003]
[1770148373343,0.00684759,2200.3,2199.9,0.91942428]
[1770148373543,0.00684759,2200.3,2200.0,0.91942428]
[1770148373704,0.00684759,2200.5,2200.1,2.05235352]
[1770148374029,0.00684759,2200.5,2199.5,3.93452919]
[1770148374030,0.00684759,2200.3,2199.7,1.513877]
[1770148374333,0.00794759,2200.0,2199.6,12.9995762]
[1770148374636,0.0011,2200.0,2199.6,12.9995762]
[1770148375509,0.0011,2200.0,2199.2,0.001]
[1770148375510,0.00684759,2199.6,2199.2,0.001]
[1770148375822,0.00684759,2199.7,2199.2,0.001]
[1770148376626,0.00684759,2199.8,2199.2,0.001]
[1770148376830,0.00684759,2199.7,2199.2,0.001]
[1770148377733,0.00684759,2199.6,2199.2,0.001]
[1770148377932,0.00684759,2199.6,2199.0,0.001]
[1770148378111,0.00684759,2199.4,2199.0,0.001]
[1770148378637,0.00684759,2199.2,2198.5,1.513877]
[1770148378823,0.00684759,2199.4,2198.6,12.9975762]
[1770148379025,0.00684759,2199.3,2198.6,12.9975762]
[1770148379236,0.00684759,2199.3,2198.4,1.513877]
[1770148379237,0.00684759,2199.0,2198.4,1.513877]
[1770148379437,0.00684759,2199.0,2197.6,0.85955947]
[1770148379438,0.00684759,2198.1,2197.6,0.85955947]
[1770148379614,0.00684759,2198.1,2197.4,13.0]
[1770148379615,0.00684759,2199.2,2197.4,13.0]
[1770148379815,0.00684759,2199.2,2197.2,4.55222138]
[1770148379816,0.00684759,2198.4,2197.6,13.0]
[1770148380012,0.00684759,2198.0,2197.6,13.0]
[1770148380245,0.00684759,2197.6,2197.2,0.001]
[1770148380448,0.00684759,2197.4,2197.2,0.001]
[1770148380640,0.00684759,2197.3,2196.7,13.0]
[1770148380811,0.00684759,2197.3,2196.3,13.0]
[1770148380812,0.00684759,2197.0,2196.3,13.0]
[1770148381011,0.00684759,2196.9,2196.4,1.6957276]
[1770148381328,0.00684759,2196.9,2195.9,13.0]
[1770148381329,0.00684759,2196.7,2195.9,13.0]
[1770148381515,0.00684759,2197.1,2195.9,13.0]
[1770148381714,0.00684759,2196.9,2195.9,13.0]
[1770148381921,0.42084759,2197.5,2195.9,13.0]
[1770148382245,0.00684759,2197.1,2195.9,13.0]
[1770148382549,0.00684759,2197.3,2196.2,14.1383005]
[1770148382710,0.00684759,2197.3,2196.2,13.954]
[1770148383022,0.00684759,2196.8,2196.2,13.0]
[1770148383229,0.00684759,2196.8,2195.8,13.0]
[1770148383230,0.00684759,2196.3,2195.8,13.0]
[1770148383408,0.00684759,2196.4,2195.8,14.3]
[1770148383814,0.00684759,2196.4,2195.4,13.0]
[1770148383815,0.00684759,2195.7,2195.4,13.0]
[1770148384043,0.00684759,2195.7,2194.8,13.0]
[1770148384414,0.00684759,2195.9,2194.8,14.13902388]
[1770148384614,0.00684759,2195.9,2194.8,13.0]
[1770148384615,0.00684759,2195.6,2194.8,13.0]
[1770148384814,0.00684759,2195.6,2194.6,0.001]
[1770148384815,0.00684759,2194.8,2194.6,0.001]
[1770148385061,0.00684759,2195.6,2194.6,0.001]
[1770148385216,0.00684759,2195.6,2194.4,13.001]
[1770148385217,0.00684759,2195.2,2194.4,13.001]
[1770148385415,0.00684759,2195.2,2194.5,14.3001]
[1770148385621,0.00684759,2195.2,2194.4,0.001]
[1770148385622,0.00684759,2194.9,2194.4,0.001]
[1770148385846,0.00684759,2194.8,2194.4,0.001]
[1770148386025,0.00684759,2195.2,2194.4,0.001]
[1770148386026,0.00684759,2195.9,2194.4,0.001]
[1770148386342,0.31902272,2195.6,2194.4,13.001]
[1770148386546,0.31902272,2195.6,2194.5,14.41402937]
[1770148386922,0.00684759,2195.5,2194.5,14.41402937]
[1770148387121,0.00684759,2195.4,2194.5,14.41402937]
[1770148387539,0.00684759,2195.5,2194.5,14.41402937]
[1770148388128,0.31902272,2195.6,2194.5,15.5532188]
[1770148388329,0.31902272,2195.6,2194.7,13.0]
[1770148388553,0.31902272,2195.6,2194.6,2.10650655]
[1770148388554,0.31902272,2195.6,2194.9,13.0]
[1770148388753,0.07295796,2195.6,2195.3,13.001]
[1770148389666,0.00684759,2196.5,2195.3,13.001]
[1770148389667,0.31434277,2196.1,2195.3,13.001]
[1770148389888,0.00684759,2197.6,2195.9,12.93682675]
[1770148390032,0.00684759,2197.0,2196.1,12.93682675]
[1770148390634,0.3141971,2197.1,2196.3,12.93682675]
[1770148390854,0.3141971,2197.1,2196.5,12.93682675]
[1770148391890,0.00684759,2197.6,2196.4,0.955]
[1770148391891,8.48897137,2200.5,2196.4,0.955]
[1770148392084,0.0011,2202.2,2196.4,0.955]
[1770148392085,0.26632038,2202.2,2201.2,1.18813017]
[1770148392374,6.56988855,2203.7,2202.5,0.26632038]
[1770148392375,0.00684759,2203.2,2202.5,0.26632038]
[1770148392547,0.0011,2203.3,2201.6,10.19234452]
[1770148392751,0.0011,2203.3,2201.7,1.97423445]
[1770148392969,0.0011,2203.3,2201.6,3.40709818]
[1770148392970,0.0011,2203.7,2201.6,19.59177682]
[1770148393156,0.00684759,2203.5,2202.2,1.13520956]
[1770148393365,0.00794759,2203.9,2202.2,1.13520956]
[1770148393366,0.00684759,2204.2,2202.3,0.955]
[1770148393562,0.00794759,2204.8,2202.4,0.1024]
[1770148393739,0.00684759,2204.7,2202.8,10.19234452]
[1770148393946,0.0011,2204.8,2202.9,0.954]
[1770148394269,0.0011,2204.8,2203.4,12.93682675]
[1770148394447,0.00684759,2204.0,2203.4,12.93682675]
[1770148394651,0.00684759,2204.4,2203.4,12.93682675]
[1770148394652,0.00684759,2205.3,2203.4,12.93682675]
[1770148394851,0.00684759,2205.2,2203.4,12.93682675]
[1770148395171,0.00684759,2204.5,2203.5,0.954]
[1770148395351,0.00794759,2204.8,2203.5,13.89082675]
[1770148395557,0.0011,2204.8,2203.9,12.93682675]
[1770148395744,0.00684759,2206.2,2204.4,12.93682675]
[1770148395943,0.00684759,2206.2,2204.0,0.954]
[1770148395944,0.14247589,2206.9,2204.8,10.19234452]
[1770148396145,0.14247589,2206.9,2205.8,12.93682675]
[1770148396146,0.1356283,2206.9,2205.8,12.93682675]
[1770148396409,0.00684759,2208.5,2205.8,12.93682675]
[1770148396410,5.62542671,2209.9,2206.5,12.93682675]
[1770148396676,0.00684759,2209.0,2207.6,12.93682675]
[1770148396993,0.00684759,2209.8,2207.5,10.19234452]
[1770148396994,0.00684759,2207.9,2207.5,10.19234452]
[1770148397147,0.00684759,2207.9,2207.2,0.39262842]
[1770148397148,0.00684759,2207.3,2207.2,0.39262842]
[1770148397442,0.00684759,2207.3,2205.9,5.14835546]
[1770148397443,0.00684759,2207.0,2206.4,0.954]
[1770148397642,0.00684759,2207.2,2206.4,0.954]
[1770148397843,0.00684759,2206.5,2206.4,0.954]
[1770148398058,0.00684759,2206.3,2206.0,0.954]
[1770148398351,0.00684759,2206.3,2205.5,12.93682675]
[1770148398352,0.00684759,2206.1,2205.5,12.93682675]
[1770148398552,0.00684759,2205.4,2204.8,12.93682675]
[1770148398750,0.00684759,2205.4,2204.4,0.953]
[1770148398751,0.00684759,2204.9,2204.4,0.953]
[1770148399054,0.00684759,2204.6,2204.4,13.88982675]
[1770148399372,0.00684759,2204.8,2204.4,13.88982675]
[1770148399545,0.00684759,2204.5,2204.4,0.953]
[1770148399748,0.00684759,2204.9,2204.4,0.953]
[1770148399948,0.00684759,2204.9,2204.0,0.953]
[1770148399949,0.00684759,2204.6,2204.0,0.953]
[1770148400182,0.00684759,2204.5,2204.0,0.953]
[1770148400681,0.00684759,2205.6,2204.4,12.26439207]
[1770148400845,0.00684759,2204.9,2204.4,12.26439207]
[1770148401043,0.00684759,2204.9,2204.1,0.953]
[1770148401044,0.00684759,2204.8,2204.1,0.953]
[1770148401244,0.00684759,2204.3,2203.8,12.26439207]
[1770148401547,0.00684759,2203.7,2203.1,12.26439207]
[1770148401763,0.00684759,2204.8,2203.1,14.44383128]
[1770148402093,0.00684759,2204.0,2203.1,14.44383128]
[1770148402306,0.00684759,2204.8,2203.2,12.26439207]
[1770148402465,0.00684759,2204.4,2203.2,12.26439207]
[1770148402662,0.00684759,2204.1,2203.2,12.26439207]
[1770148402888,0.00684759,2204.1,2202.6,1.1350076]
[1770148402889,0.00684759,2203.4,2202.6,1.1350076]
[1770148403064,0.00684759,2203.4,2202.7,0.952]
[1770148403297,0.00684759,2203.7,2202.7,0.952]
[1770148403496,0.00684759,2204.5,2202.7,13.21639207]
[1770148403699,0.00684759,2204.5,2202.9,12.26439207]
[1770148403700,0.00684759,2203.7,2202.9,12.26439207]
[1770148404000,0.00684759,2204.1,2203.1,12.26439207]
[1770148404172,0.00684759,2204.6,2203.2,0.952]
[1770148404376,0.00684759,2204.6,2203.2,13.21639207]
[1770148404580,0.00684759,2204.6,2203.2,0.952]
[1770148404581,0.00684759,2203.6,2203.2,0.952]
[1770148404780,0.00684759,2203.7,2203.2,0.952]
[1770148404966,0.00684759,2204.0,2203.2,0.952]
[1770148405310,0.00684759,2204.0,2202.7,12.26439207]
[1770148405311,0.00684759,2203.9,2202.7,12.26439207]
[1770148405600,0.00684759,2203.6,2202.7,14.51006573]
[1770148406165,0.00684759,2203.9,2202.7,13.39932353]
[1770148406362,8.60580916,2205.3,2202.6,0.952]
[1770148406363,0.00684759,2203.6,2202.8,12.26439207]
[1770148406574,0.00684759,2203.5,2202.8,12.26439207]
[1770148407601,0.00684759,2203.0,2202.3,0.952]
[1770148407773,0.00684759,2203.4,2202.4,12.26439207]
[1770148407978,0.00684759,2203.4,2202.5,1.13506908]
[1770148408162,0.00684759,2203.4,2202.4,13.58603128]
[1770148408163,0.00684759,2203.1,2202.4,13.58603128]
[1770148408369,0.00684759,2203.1,2202.4,12.26439207]
[1770148408370,0.00684759,2203.0,2202.4,12.26439207]
[1770148408703,0.00684759,2203.2,2202.4,12.26439207]
[1770148408996,0.00684759,2203.3,2202.4,13.39948266]
[1770148409195,0.00684759,2203.2,2202.4,14.15360674]
[1770148409394,0.00684759,2203.0,2202.4,12.26439207]
[1770148409696,0.00684759,2202.9,2202.4,12.26439207]
[1770148409869,0.00684759,2202.8,2202.4,12.26439207]
[1770148410068,0.00684759,2203.1,2202.4,12.26439207]
[1770148410288,0.00684759,2202.8,2202.2,0.952]
[1770148410489,0.00684759,2202.8,2201.5,10.19234452]
[1770148410490,0.00684759,2202.1,2201.2,12.26439207]
[1770148410774,0.00684759,2202.1,2201.3,0.952]
[1770148410775,0.00684759,2202.0,2201.3,0.952]
[1770148410969,0.00684759,2202.3,2201.3,14.35207726]
[1770148411273,0.00684759,2202.3,2201.3,12.26439207]
[1770148411274,0.00684759,2201.8,2201.3,12.26439207]
[1770148411599,0.00684759,2201.8,2199.9,4.54557737]
[1770148411600,0.00684759,2201.4,2200.7,12.26439207]
[1770148411897,0.00684759,2202.6,2200.7,14.62682878]
[1770148412098,0.00684759,2202.9,2201.4,12.26439207]
[1770148412302,0.00684759,2202.7,2201.5,13.21639207]
[1770148412465,0.00684759,2203.8,2201.9,12.26439207]
[1770148412802,0.00684759,2202.0,2201.3,12.26439207]
[1770148413102,0.00684759,2202.4,2201.4,13.58603128]
[1770148413402,0.00684759,2202.0,2201.4,13.58603128]
[1770148413605,0.00684759,2201.9,2201.4,13.58603128]
[1770148413769,0.00684759,2202.2,2201.4,13.58603128]
[1770148413969,0.00684759,2202.1,2201.4,13.58603128]
[1770148414300,0.00684759,2201.8,2201.2,0.952]
[1770148414474,0.00684759,2202.2,2201.2,0.952]
[1770148414475,0.00684759,2203.0,2201.2,13.21639207]
[1770148414664,0.00684759,2203.0,2201.3,12.26439207]
[1770148414867,0.00684759,2202.1,2201.3,12.26439207]
[1770148415076,0.00684759,2202.0,2201.3,12.26439207]
[1770148415290,0.00684759,2201.9,2201.5,0.001]
[1770148415463,0.00684759,2201.8,2201.5,0.001]
[1770148415676,0.00684759,2201.9,2201.5,0.001]
[1770148416111,7.47323248,2203.5,2201.6,13.44996237]
[1770148416112,0.00684759,2202.9,2201.6,13.44996237]
[1770148416403,0.0011,2203.5,2201.6,13.44996237]
[1770148416404,0.00794759,2204.6,2203.1,12.26439207]
[1770148416611,0.00684759,2204.4,2203.2,14.67640158]
[1770148416788,0.00684759,2204.5,2203.2,14.67640158]
[1770148416966,0.00684759,2204.3,2203.2,14.67640158]
[1770148417168,0.00684759,2204.3,2203.4,0.2335703]
[1770148417368,0.00684759,2204.3,2203.4,14.55629038]
[1770148417667,0.00684759,2204.2,2203.4,14.32272008]
[1770148417991,0.00684759,2204.4,2203.4,14.32272008]
[1770148418192,0.00684759,2204.3,2203.4,14.32272008]
[1770148418402,0.00684759,2203.9,2203.2,2.17843921]
[1770148418711,0.00684759,2204.2,2203.2,14.35108472]
[1770148419006,0.00684759,2204.1,2203.2,14.35108472]
[1770148419181,0.00684759,2203.8,2203.2,14.35110226]
[1770148419510,0.00684759,2204.2,2203.2,14.35110226]
[1770148419511,0.0011,2204.6,2203.3,12.88668806]
[1770148419808,0.00684759,2204.3,2203.5,0.2335703]
[1770148419991,0.00684759,2204.2,2203.3,12.26439207]
[1770148420169,0.00684759,2204.1,2203.6,0.952]
[1770148420505,0.00684759,2204.0,2203.6,0.952]
[1770148420706,0.00684759,2204.1,2203.6,0.952]
[1770148420892,0.00684759,2204.2,2203.6,0.952]
[1770148421277,0.00684759,2204.2,2203.2,1.13466241]
[1770148421492,0.00684759,2203.8,2203.2,13.21639207]
[1770148421705,0.00684759,2203.6,2203.2,0.952]
[1770148421903,0.00684759,2203.7,2202.6,12.26439207]
[1770148422203,0.00684759,2203.4,2202.7,1.85962262]
[1770148422411,0.00684759,2203.4,2202.7,0.952]
[1770148422600,0.00684759,2203.6,2202.8,0.9075967]
[1770148422779,0.00684759,2203.6,2202.7,13.21639207]
[1770148422974,0.00684759,2203.6,2202.8,0.90767979]
[1770148423176,0.00684759,2203.1,2202.7,0.952]
[1770148423495,0.00684759,2203.3,2202.7,0.952]
[1770148423673,0.00684759,2203.2,2202.7,0.952]
[1770148423873,0.00684759,2203.3,2202.7,0.952]
[1770148424289,0.00684759,2203.3,2202.8,0.90944845]
[1770148424513,0.00684759,2203.2,2202.7,0.952]
[1770148424717,0.00478072,2204.0,2202.9,0.2335703]
[1770148424917,0.00684759,2204.3,2202.9,0.2335703]
[1770148424918,0.00684759,2203.9,2203.0,0.90938854]
[1770148425119,0.00684759,2204.0,2203.1,0.90938854]
[1770148425323,0.00684759,2203.8,2203.2,1.86138854]
[1770148425488,0.00684759,2203.7,2203.2,0.952]
[1770148425834,0.00684759,2204.2,2203.3,0.90894488]
[1770148425985,0.00684759,2204.8,2203.4,0.90880994]
[1770148426189,0.00684759,2204.8,2203.3,0.29957032]
[1770148426190,0.00684759,2204.2,2203.5,0.90880994]
[1770148426443,0.00684759,2204.2,2203.3,12.56396239]
[1770148426603,0.00684759,2204.4,2203.4,13.17306386]
[1770148426919,0.00684759,2205.3,2203.3,0.29957032]
[1770148426920,0.00684759,2205.3,2204.0,12.49796237]
[1770148427092,0.00684759,2205.3,2204.2,13.95131722]
[1770148427294,0.00684759,2206.3,2204.6,12.49796237]
[1770148427518,0.00684759,2206.3,2205.0,0.2335703]
[1770148427725,0.00794759,2206.4,2205.3,12.49796237]
[1770148427726,0.0011,2206.4,2205.3,12.49796237]
[1770148428010,0.0011,2206.4,2205.4,1.86067179]
[1770148428219,0.0011,2206.4,2205.5,0.90867179]
[1770148428407,0.0011,2206.4,2205.2,1.45335485]
[1770148428408,0.00684759,2205.7,2205.2,0.952]
[1770148428594,0.00684759,2205.8,2205.3,0.9083696]
[1770148428798,0.00684759,2206.7,2205.4,0.9083696]
[1770148429002,0.00684759,2206.7,2205.5,0.9083696]
[1770148429003,0.00684759,2206.0,2205.5,0.9083696]
[1770148429195,0.00684759,2206.2,2205.6,0.90769614]
[1770148429437,0.0011,2206.6,2205.7,0.952]
[1770148429590,0.00684759,2206.3,2205.8,0.90749128]
[1770148429792,0.00684759,2206.3,2205.3,13.71774692]
[1770148429793,0.00684759,2206.1,2205.3,13.71774692]
[1770148430005,0.0011,2206.6,2205.7,13.21639207]
[1770148430206,0.00684759,2206.4,2205.8,0.90768692]
[1770148430432,0.00684759,2206.3,2205.7,12.26439207]
[1770148430625,0.00794759,2206.6,2205.9,11.83781393]
[1770148430626,0.0011,2206.6,2205.9,11.83781393]
[1770148430993,0.00794759,2206.6,2205.9,11.83781393]
[1770148431226,0.00684759,2206.0,2205.3,11.83781393]
[1770148431427,0.00684759,2206.0,2204.7,3.00918121]
[1770148431428,0.00684759,2205.9,2205.4,0.952]
[1770148431629,0.00684759,2205.7,2204.9,0.952]
[1770148431831,0.00684759,2206.0,2205.0,0.90615019]
[1770148432033,0.00684759,2205.8,2204.9,0.952]
[1770148432209,0.00684759,2205.8,2205.0,0.9053465]
[1770148432411,0.00684759,2205.9,2204.9,0.952]
[1770148432609,0.00684759,2205.7,2204.9,0.952]
[1770148433220,0.00684759,2205.7,2204.9,0.951]
[1770148433221,0.00684759,2205.6,2204.9,0.951]
[1770148434236,0.00684759,2206.0,2204.9,3.36371928]
[1770148434534,0.00794759,2206.6,2205.0,1.29650681]
[1770148434830,0.00684759,2205.8,2204.8,0.951]
[1770148435019,0.00684759,2205.7,2204.8,0.951]
[1770148435816,0.00684759,2205.5,2204.8,0.951]
[1770148436504,0.00684759,2205.2,2204.8,0.951]
[1770148437107,0.00684759,2204.9,2204.1,1.39513172]
[1770148437306,0.00684759,2204.8,2204.1,0.951]
[1770148437605,0.00684759,2204.8,2203.7,12.62716659]
[1770148437606,0.00684759,2204.6,2203.9,0.951]
[1770148437802,0.00684759,2204.3,2203.9,0.951]
[1770148438115,0.00684759,2204.1,2203.3,13.57816659]
[1770148438319,0.00684759,2203.9,2203.3,0.951]
[1770148438642,0.00684759,2203.7,2203.3,0.951]
[1770148438816,0.00684759,2204.0,2203.3,0.951]
[1770148439143,0.00684759,2204.1,2203.3,0.951]
[1770148439339,0.00684759,2204.0,2203.3,0.951]
[1770148439913,0.00684759,2204.3,2203.3,0.951]